[Event "XVII Orsha-2019 Open"]
[Site "Orsha"]
[Date "2019.01.20"]
[Round "5.33"]
[White "Poghosyan, Sarmen"]
[Black "Elkin, Leonid"]
[Result "0-1"]
[ECO "B20"]
[WhiteElo "1361"]
[BlackElo "2085"]
[PlyCount "88"]
[EventDate "2019.01.18"]
[EventType "swiss"]
[EventCountry "BLR"]
[TimeControl "5400+30"]

1. e4 c5 2. Ne2 d6 3. g3 g6 4. Bg2 Bg7 5. O-O Nc6 6. c3 e5 7. d3 Nge7 8. f4 O-O 9. Be3 Qb6 10. Nd2 Bg4 11. Nc4 Qc7 12. h3 Be6 13. fxe5 Nxe5 14. Nxe5 dxe5 15. Rc1 Rfd8 16. Kh2 Rd7 17. d4 Bxa2 18. Qa4 Be6 19. d5 Nxd5 20. exd5 Bxd5 21. Rfd1 Rad8 22. Bxd5 Rxd5 23. Rxd5 Rxd5 24. Qxa7 c4 25. Re1 h5 26. Qa4 b5 27. Qa8+ Rd8 28. Qe4 f5 29. Qc2 Bf6 30. g4 hxg4 31. hxg4 Qh7+ 32. Kg2 Qh4 33. Ng3 Qxg4 34. Qe2 Qxe2+ 35. Rxe2 Rd3 36. Bb6 f4 37. Rf2 Rxg3+ 38. Kh2 g5 39. Bc7 Kf7 40. Rd2 Rd3 41. Rg2 e4 42. Re2 e3 43. Kg2 Rd2 44. Kf3 g4+ 0-1

[Event "XVII Orsha-2019 Open"]
[Site "Orsha"]
[Date "2019.01.20"]
[Round "5.34"]
[White "Bialiauski, Artsiom"]
[Black "Vlasov, Andrey"]
[Result "1-0"]
[ECO "D00"]
[WhiteElo "1914"]
[BlackElo "2316"]
[PlyCount "55"]
[EventDate "2019.01.18"]
[EventType "swiss"]
[EventCountry "BLR"]
[TimeControl "5400+30"]

1. d4 d5 2. Nc3 c6 3. Nf3 Nf6 4. Bf4 Bg4 5. e3 e6 6. Qd2 Nbd7 7. Be2 Bb4 8. Bd3 O-O 9. a3 Be7 10. h3 Bxf3 11. gxf3 c5 12. O-O Nh5 13. Bh2 cxd4 14. exd4 Bh4 15. Kh1 Qf6 16. f4 g6 17. Ne2 Rfc8 18. c3 Kh8 19. Rae1 Qe7 20. Ng1 Re8 21. Nf3 a6 22. f5 Ng7 23. fxg6 fxg6 24. Qh6 Nf5 25. Bxf5 gxf5 26. Qxh4 Nf6 27. Be5 Rf8 28. Ng5 1-0

[Event "XVII Orsha-2019 Open"]
[Site "Orsha"]
[Date "2019.01.20"]
[Round "5.35"]
[White "Petrosyan, Sahak"]
[Black "Gabdrakipov, Kirill"]
[Result "1-0"]
[ECO "C77"]
[WhiteElo "1835"]
[BlackElo "1901"]
[PlyCount "77"]
[EventDate "2019.01.18"]
[EventType "swiss"]
[EventCountry "BLR"]
[TimeControl "5400+30"]

1. e4 e5 2. Nf3 Nc6 3. Bb5 a6 4. Ba4 Nf6 5. d3 b5 6. Bb3 d6 7. Ng5 d5 8. exd5 Nd4 9. c4 Bf5 10. Nc3 Bb4 11. O-O Bxc3 12. bxc3 Nxb3 13. axb3 O-O 14. Re1 Re8 15. Ba3 bxc4 16. dxc4 h6 17. Nf3 Bg4 18. h3 Bh5 19. g4 e4 20. gxh5 exf3 21. Qxf3 Rb8 22. Bc5 Rxb3 23. Bd4 Nh7 24. Kh1 Ng5 25. Qg3 f6 26. Rg1 Qe7 27. h4 Ne4 28. Qf4 Qd7 29. Qf3 c6 30. Rg4 cxd5 31. Rag1 Re7 32. Bxf6 Nxf6 33. Qxf6 dxc4 34. R1g2 Rf7 35. Qe5 Rb5 36. Qe4 Qc7 37. Rg6 Re5 38. Qa8+ Kh7 39. Rxh6+ 1-0

[Event "XVII Orsha-2019 Open"]
[Site "Orsha"]
[Date "2019.01.20"]
[Round "5.36"]
[White "Kolosovskaya, Olga"]
[Black "Masterova, Daria"]
[Result "1-0"]
[ECO "D94"]
[WhiteElo "1855"]
[BlackElo "1500"]
[PlyCount "47"]
[EventDate "2019.01.18"]
[EventType "swiss"]
[EventCountry "BLR"]
[TimeControl "5400+30"]

1. d4 d5 2. c4 c6 3. Nf3 Nf6 4. e3 Nbd7 5. Bd3 g6 6. O-O Bg7 7. cxd5 cxd5 8. Nc3 O-O 9. Qb3 Nb6 10. Bd2 Be6 11. Ng5 Qc8 12. Rfc1 Qd7 13. Nxe6 Qxe6 14. Nb5 Ne8 15. Ba5 Nd7 16. Nc3 b6 17. Bb4 Nc7 18. Ne2 Rac8 19. Nf4 Qf6 20. Rxc7 Rxc7 21. Nxd5 Qg5 22. Nxc7 Rc8 23. Nd5 e6 24. Ne7+ 1-0

[Event "XVII Orsha-2019 Open"]
[Site "Orsha"]
[Date "2019.01.20"]
[Round "5.37"]
[White "Sokolov, Sergey"]
[Black "Shaban, Aliaksandra"]
[Result "1-0"]
[ECO "A46"]
[WhiteElo "1756"]
[BlackElo "1482"]
[PlyCount "51"]
[EventDate "2019.01.18"]
[EventType "swiss"]
[EventCountry "BLR"]
[TimeControl "5400+30"]

1. d4 d5 2. Bf4 c5 3. e3 e6 4. Nf3 Qb6 5. Qc1 Nc6 6. c3 Nf6 7. h3 Bd7 8. Be2 Rc8 9. O-O Be7 10. Nbd2 cxd4 11. exd4 a6 12. Re1 O-O 13. Bd3 Nb4 14. Bb1 Bb5 15. Ne5 Nc6 16. Ndf3 a5 17. Qc2 Qa6 18. Nd7 Rfd8 19. Nxf6+ Bxf6 20. Qxh7+ Kf8 21. Bg5 Ne7 22. Qh8+ Ng8 23. Bh7 Bxg5 24. Nxg5 Ke7 25. Qxg7 Kd6 26. Nxf7+ 1-0

[Event "XVII Orsha-2019 Open"]
[Site "Orsha"]
[Date "2019.01.20"]
[Round "5.38"]
[White "Loshakov, Dmitry"]
[Black "Platnitski, Siarhei"]
[Result "1-0"]
[ECO "A48"]
[WhiteElo "1852"]
[BlackElo "1383"]
[PlyCount "157"]
[EventDate "2019.01.18"]
[EventType "swiss"]
[EventCountry "BLR"]
[TimeControl "5400+30"]

1. d4 Nf6 2. Nf3 g6 3. Bg5 Bg7 4. Nbd2 h6 5. Bh4 O-O 6. e3 d6 7. Bd3 c5 8. c3 Nbd7 9. O-O a6 10. a4 Rb8 11. Qe2 Re8 12. b4 cxb4 13. cxb4 Nf8 14. b5 a5 15. Rac1 Be6 16. Rc2 Rc8 17. Rfc1 Qd7 18. Nc4 Bxc4 19. Bxc4 Ne6 20. Nd2 d5 21. Bb3 Rxc2 22. Rxc2 g5 23. Bg3 Rc8 24. Qd1 Qd8 25. Be5 Rxc2 26. Qxc2 Nh5 27. Bxg7 Nhxg7 28. Qa2 Nc7 29. b6 Nce6 30. Bxd5 Qxb6 31. Qb3 Qxb3 32. Nxb3 b6 33. Nd2 Nc7 34. Bc6 Nge6 35. Nc4 Nd8 36. Bf3 b5 37. axb5 Nxb5 38. Nxa5 Kg7 39. Kf1 Nd6 40. Ke2 Kf6 41. Kd3 Ke6 42. e4 f6 43. Bg4+ Kf7 44. Bh5+ Ke6 45. Nb3 Kd7 46. Nc5+ Kc7 47. e5 fxe5 48. dxe5 N6b7 49. Nxb7 Kxb7 50. Ke4 e6 51. f4 gxf4 52. Kxf4 Kc7 53. Be8 Nb7 54. Kg4 Kd8 55. Bb5 Ke7 56. Kh5 Nd8 57. Kxh6 Nf7+ 58. Kg7 Nxe5 59. h4 Nf7 60. h5 e5 61. h6 e4 62. h7 e3 63. h8=Q Nxh8 64. Kxh8 Kf6 65. Be2 Kg5 66. g4 Kh6 67. Kg8 Kg6 68. Kf8 Kf6 69. Ke8 Ke6 70. Kd8 Kd6 71. Kc8 Kc6 72. Kb8 Kd6 73. Kb7 Kd7 74. Kb6 Kd6 75. Kb5 Kd5 76. Kb4 Kd4 77. Kb3 Kd5 78. Kc3 Ke4 79. Kc4 1-0

[Event "XVII Orsha-2019 Open"]
[Site "Orsha"]
[Date "2019.01.20"]
[Round "5.40"]
[White "Kulikov, Egor"]
[Black "Borodulin, Pavel"]
[Result "0-1"]
[ECO "B22"]
[WhiteElo "1557"]
[BlackElo "1481"]
[PlyCount "96"]
[EventDate "2019.01.18"]
[EventType "swiss"]
[EventCountry "BLR"]
[TimeControl "5400+30"]

1. e4 c5 2. c3 d6 3. d4 cxd4 4. cxd4 Nf6 5. Nc3 g6 6. Nf3 Bg7 7. Bc4 O-O 8. O-O Nc6 9. Be3 Bg4 10. Be2 Rc8 11. h3 Bxf3 12. Bxf3 a6 13. Qd2 b5 14. Rac1 e6 15. Ne2 Qd7 16. Bh6 Bxh6 17. Qxh6 Nb4 18. Qd2 Nc6 19. b4 Rfd8 20. a3 Qe7 21. Qg5 Nd7 22. Qxe7 Nxe7 23. Rxc8 Rxc8 24. Rc1 Rxc1+ 25. Nxc1 Nb6 26. Be2 Nc6 27. Nb3 Nc4 28. Bxc4 bxc4 29. Nd2 c3 30. Nb3 c2 31. d5 Ne5 32. Nc1 exd5 33. exd5 Nc4 34. Kf1 Nxa3 35. Ke2 Kg7 36. Kd3 Kf6 37. Kc3 Ke5 38. Kb3 Nb5 39. Kxc2 Kxd5 40. Kb3 Nd4+ 41. Kc3 g5 42. f3 h5 43. Kd3 f5 44. Na2 h4 45. Nc3+ Ke5 46. Kc4 Nc2 47. Nd1 Kf4 48. Kd3 Nxb4+ 0-1

[Event "XVII Orsha-2019 Open"]
[Site "Orsha"]
[Date "2019.01.21"]
[Round "6"]
[White "Moskalenko, Alexander"]
[Black "Zabotin, Alexander"]
[Result "1-0"]
[ECO "A05"]
[WhiteElo "2517"]
[BlackElo "2484"]
[Annotator "ChessBase"]
[PlyCount "235"]
[EventDate "2019.01.18"]
[EventType "swiss"]
[EventCountry "BLR"]
[SourceTitle "playchess.com"]
[Source "ChessBase"]
[SourceQuality "1"]
[TimeControl "5400+30"]

1. Nf3 {[%emt 0:14:05]} Nf6 {[%emt 0:00:00]} 2. c4 {[%emt 0:00:18]} e6 {[%emt 0:00:00]} 3. g3 {[%emt 0:01:40]} b6 {[%emt 0:00:30]} 4. Bg2 {[%emt 0:00:12]} Bb7 {[%emt 0:00:05]} 5. O-O {[%emt 0:01:26]} c5 {[%emt 0:01:43]} 6. b3 {[%emt 0:03:03]} Be7 {[%emt 0:00:25]} 7. Bb2 {[%emt 0:00:03]} O-O {[%emt 0:00:10]} 8. Nc3 {[%emt 0:00:25]} d5 {[%emt 0:09:07]} 9. e3 {[%emt 0:00:05]} Nc6 {[%emt 0:01:26]} 10. cxd5 {[%emt 0:00:06]} Nxd5 {[%emt 0:03:15]} 11. Nxd5 {[%emt 0:01:01]} Qxd5 {[%emt 0:14:48]} 12. d4 {[%emt 0:00:07]} Qd8 {[%emt 0:17:12]} 13. dxc5 {[%emt 0:08:29]} Bxc5 {[%emt 0:03:36]} 14. Ne5 {[%emt 0:00:12]} Nxe5 {[%emt 0:00:24]} 15. Bxb7 {[%emt 0:00:08]} Rb8 {[%emt 0:00:16]} 16. Be4 {[%emt 0:00:10]} Nd7 {[%emt 0:05:46]} 17. b4 {[%emt 0:06:41]} Be7 {[%emt 0:01:16]} 18. Qa4 {[%emt 0:00:58]} Bf6 {[%emt 0:04:04]} 19. Rad1 {[%emt 0:00:42]} Bxb2 {[%emt 0:00:34]} 20. Rxd7 {[%emt 0:00:22]} Qf6 {[%emt 0:00:42]} 21. Qxa7 {[%emt 0:02:05]} Qc3 {[%emt 0:04:48]} 22. b5 {[%emt 0:01:23]} Qe5 {[%emt 0:00:31]} 23. Bc6 {[%emt 0:00:16]} Bc3 {[%emt 0:00:25]} 24. Qa3 {[%emt 0:04:40]} Rbd8 {[%emt 0:02:29]} 25. Rfd1 {[%emt 0:06:42]} Rxd7 {[%emt 0:00:05]} 26. Rxd7 {[%emt 0:00:03]} Qf6 {[%emt 0:00:29]} 27. Qc1 {[%emt 0:03:58]} g6 {[%emt 0:02:09]} 28. Kg2 {[%emt 0:00:56]} Ba5 {[%emt 0:01:06]} 29. Qd1 {[%emt 0:00:07]} h5 {[%emt 0:01:05]} 30. h3 {[%emt 0:00:38]} Qc3 {[%emt 0:00:39]} 31. Be4 {[%emt 0:06:39]} Qf6 {[%emt 0:01:20]} 32. Qd6 {[%emt 0:01:09]} Be1 {[%emt 0:00:54]} 33. Qf4 {[%emt 0:00:41]} Kg7 {[%emt 0:03:54]} 34. Qxf6+ {[%emt 0:02:46]} Kxf6 {[%emt 0:00:03]} 35. a3 {[%emt 0:01:20]} g5 {[%emt 0:00:57]} 36. Kf1 {[%emt 0:02:57]} Ba5 {[%emt 0:00:04]} 37. Ke2 {[%emt 0:00:49]} h4 {[%emt 0:02:31]} 38. gxh4 {[%emt 0:00:27]} gxh4 {[%emt 0:00:05]} 39. Bf3 {[%emt 0:03:08]} Kg5 {[%emt 0:01:44]} 40. Re7 {[%emt 0:03:57]} Kf6 {[%emt 0:00:14]} 41. Rc7 {[%emt 0:00:58]} Kg5 {[%emt 0:00:03]} 42. Rd7 {[%emt 0:01:29]} Kg6 {[%emt 0:00:30]} 43. Bc6 {[%emt 0:01:11]} Kf6 {[%emt 0:02:56]} 44. Kf3 {[%emt 0:00:38]} Rg8 {[%emt 0:00:06]} 45. Rb7 {[%emt 0:00:13]} Rd8 {[%emt 0:01:15]} 46. Kg4 {[%emt 0:00:53]} Rg8+ {[%emt 0:00:04]} 47. Kf3 {[%emt 0:00:06]} Rd8 {[%emt 0:00:04]} 48. Ra7 {[%emt 0:00:35]} Rg8 {[%emt 0:00:10]} 49. Rd7 {[%emt 0:00:18]} Rg5 {[%emt 0:03:31]} 50. Rd4 {[%emt 0:01:04]} Rf5+ {[%emt 0:00:04]} 51. Ke2 {[%emt 0:00:04]} Rh5 {[%emt 0:00:03]} 52. Ra4 {[%emt 0:02:54]} Ke7 {[%emt 0:01:02]} 53. Rg4 {[%emt 0:01:03]} Kf6 {[%emt 0:01:16]} 54. a4 {[%emt 0:03:35]} Rh8 {[%emt 0:02:24]} 55. Rc4 {[%emt 0:00:21]} Rh5 {[%emt 0:01:22]} 56. Bf3 {[%emt 0:00:13]} Rh8 {[%emt 0:00:17]} 57. Bb7 {[%emt 0:00:01]} Ke5 {[%emt 0:00:54]} 58. Rc7 {[%emt 0:02:24]} Kf6 {[%emt 0:00:22]} 59. Bc6 {[%emt 0:00:14]} Rg8 {[%emt 0:00:27]} 60. Rb7 {[%emt 0:00:46]} Rf8 {[%emt 0:00:26]} 61. Kf3 {[%emt 0:01:27]} Rh8 {[%emt 0:00:10]} 62. Ke4 {[%emt 0:00:27]} Rd8 {[%emt 0:00:59]} 63. Kf4 {[%emt 0:00:05]} Rg8 {[%emt 0:01:41]} 64. Ke4 {[%emt 0:03:27]} Rd8 {[%emt 0:00:10]} 65. Kf3 {[%emt 0:00:01]} Rg8 {[%emt 0:00:12]} 66. Rd7 {[%emt 0:00:02]} Bc3 {[%emt 0:00:54]} 67. Ke2 {[%emt 0:00:48]} Ba5 {[%emt 0:00:08]} 68. Bf3 {[%emt 0:02:18]} Kg6 {[%emt 0:02:06]} 69. Rc7 {[%emt 0:00:23]} Rd8 {[%emt 0:00:14]} 70. Rc4 {[%emt 0:00:09]} Rh8 {[%emt 0:00:05]} 71. Rf4 {[%emt 0:00:25]} Kg7 {[%emt 0:00:33]} 72. Be4 {[%emt 0:00:34]} Rh6 {[%emt 0:01:57]} 73. Rg4+ {[%emt 0:00:20]} Kf8 {[%emt 0:00:09]} 74. Bc6 {[%emt 0:00:14]} Rh8 {[%emt 0:00:35]} 75. Rg5 {[%emt 0:03:46]} Ke7 {[%emt 0:00:09]} 76. Kf3 {[%emt 0:01:36]} Be1 {[%emt 0:00:26]} 77. Rg4 {[%emt 0:00:11]} Rh5 {[%emt 0:01:21]} 78. Rd4 {[%emt 0:02:09]} Kf6 {[%emt 0:01:07]} 79. Ke2 {[%emt 0:00:15]} Ba5 {[%emt 0:00:07]} 80. Rd8 {[%emt 0:00:23]} Rc5 {[%emt 0:03:14]} 81. Rd4 {[%emt 0:00:12]} Rh5 {[%emt 0:00:14]} 82. f4 {[%emt 0:00:50]} Rc5 {[%emt 0:03:00]} 83. Rd7 {[%emt 0:01:18]} Kg7 {[%emt 0:01:18]} 84. Ra7 {[%emt 0:00:32]} Kf8 {[%emt 0:00:04]} 85. Kd3 {[%emt 0:00:34]} Rc1 {[%emt 0:01:27]} 86. Ke4 {[%emt 0:02:52]} Rc5 {[%emt 0:00:28]} 87. Kd4 {[%emt 0:01:10]} Bc3+ {[%emt 0:00:03]} 88. Ke4 {[%emt 0:00:40]} Bb4 {[%emt 0:00:14]} 89. Rb7 {[%emt 0:01:17]} Ba5 {[%emt 0:00:11]} 90. Kf3 {[%emt 0:00:17]} Rc4 {[%emt 0:00:43]} 91. f5 {[%emt 0:00:11]} exf5 {[%emt 0:01:14]} 92. Bd5 {[%emt 0:00:04]} Rxa4 {[%emt 0:00:08]} 93. Rxf7+ {[%emt 0:00:07]} Ke8 {[%emt 0:00:04]} 94. Rxf5 {[%emt 0:00:11]} Ra3 {[%emt 0:00:46]} 95. Rh5 {[%emt 0:00:02]} Bd2 {[%emt 0:01:03]} 96. Ke2 {[%emt 0:00:01]} Bc1 {[%emt 0:00:08]} 97. Re5+ {[%emt 0:00:56]} Kd7 {[%emt 0:00:06]} 98. Re6 {[%emt 0:00:07]} Rc3 {[%emt 0:00:33]} 99. e4 {[%emt 0:00:39]} Rxh3 {[%emt 0:01:02]} 100. Rxb6 {[%emt 0:00:06]} Rc3 {[%emt 0:00:42]} 101. Rb7+ {[%emt 0:01:22]} Kd6 {[%emt 0:01:09]} 102. b6 {[%emt 0:01:55]} h3 {[%emt 0:00:48]} 103. Rf7 {[%emt 0:01:31]} h2 {[%emt 0:00:56]} 104. b7 {[%emt 0:00:50]} Rc2+ {[%emt 0:00:18]} 105. Kd1 {[%emt 0:00:33]} h1=Q+ {[%emt 0:00:47]} 106. Kxc2 {[%emt 0:00:03]} Qh8 {[%emt 0:00:12]} 107. Kxc1 {[%emt 0:00:12]} Ke5 {[%emt 0:00:32]} 108. Rc7 {[%emt 0:01:25]} Qh6+ {[%emt 0:00:20]} 109. Kc2 {[%emt 0:00:10]} Qb6 {[%emt 0:00:42]} 110. Rc8 {[%emt 0:00:25]} Qf2+ {[%emt 0:00:06]} 111. Kb3 {[%emt 0:00:27]} Qb6+ {[%emt 0:00:15]} 112. Kc4 {[%emt 0:00:03]} Qa6+ {[%emt 0:00:14]} 113. Kc5 {[%emt 0:00:10]} Qa5+ {[%emt 0:00:06]} 114. Kc6 {[%emt 0:00:04]} Qc3+ {[%emt 0:02:01]} 115. Kd7 {[%emt 0:00:03]} Qh3+ {[%emt 0:00:03]} 116. Kc7 {[%emt 0:01:04]} Qc3+ {[%emt 0:00:32]} 117. Kd8 {[%emt 0:00:21]} Qa5+ {[%emt 0:00:05]} 118. Ke8 {[%emt 0:00:19] Kxe4} 1-0

[Event "XVII Orsha-2019 Open"]
[Site "Orsha"]
[Date "2019.01.21"]
[Round "6"]
[White "Tihonov, Jurij"]
[Black "Strybuk, Artsiom I"]
[Result "1-0"]
[ECO "A05"]
[WhiteElo "2399"]
[BlackElo "2110"]
[Annotator "ChessBase"]
[PlyCount "135"]
[EventDate "2019.01.18"]
[EventType "swiss"]
[EventCountry "BLR"]
[SourceTitle "playchess.com"]
[Source "ChessBase"]
[SourceQuality "1"]
[TimeControl "5400+30"]

1. Nf3 {[%emt 0:01:46]} Nf6 {[%emt 0:00:01]} 2. c4 {[%emt 0:00:05]} g6 {[%emt 0:00:42]} 3. Nc3 {[%emt 0:00:06]} d5 {[%emt 0:01:03]} 4. cxd5 {[%emt 0:00:44]} Nxd5 {[%emt 0:00:54]} 5. h4 {[%emt 0:11:16]} Bg7 {[%emt 0:11:30]} 6. h5 {[%emt 0:01:00]} Nxc3 {[%emt 0:01:39]} 7. bxc3 {[%emt 0:09:16]} c5 {[%emt 0:01:08]} 8. g3 {[%emt 0:08:07]} b6 {[%emt 0:09:30]} 9. Bg2 {[%emt 0:00:52]} Bb7 {[%emt 0:01:16]} 10. Rb1 {[%emt 0:06:10]} Nc6 {[%emt 0:06:11]} 11. Qa4 {[%emt 0:12:24]} Qd7 {[%emt 0:03:59]} 12. Kf1 {[%emt 0:03:52]} O-O-O {[%emt 0:04:03]} 13. c4 {[%emt 0:09:01]} Ne5 {[%emt 0:14:40]} 14. Qxa7 {[%emt 0:08:32]} Bxf3 {[%emt 0:19:02]} 15. Qxd7+ {[%emt 0:00:16]} Rxd7 {[%emt 0:00:03]} 16. Bxf3 {[%emt 0:00:16]} Nxc4 {[%emt 0:00:11]} 17. d3 {[%emt 0:05:50]} Ne5 {[%emt 0:00:13]} 18. Bg2 {[%emt 0:12:02]} Kc7 {[%emt 0:01:02]} 19. Rh4 {[%emt 0:01:22]} Nc6 {[%emt 0:04:45]} 20. Ra4 {[%emt 0:00:40]} Rd4 {[%emt 0:03:09]} 21. Ra6 {[%emt 0:01:45]} Rb8 {[%emt 0:01:20]} 22. Bd2 {[%emt 0:01:59]} gxh5 {[%emt 0:02:11]} 23. a4 {[%emt 0:00:59]} Rd6 {[%emt 0:04:44]} 24. a5 {[%emt 0:02:10]} Nxa5 {[%emt 0:01:00]} 25. Bxa5 {[%emt 0:00:46]} bxa5 {[%emt 0:00:22]} 26. Ra7+ {[%emt 0:00:13]} Kc8 {[%emt 0:00:26]} 27. Rxb8+ {[%emt 0:00:57]} Kxb8 {[%emt 0:00:03]} 28. Rb7+ {[%emt 0:00:47]} Kc8 {[%emt 0:00:34]} 29. Rxe7 {[%emt 0:00:28]} Bd4 {[%emt 0:04:00]} 30. e3 {[%emt 0:00:27]} Bb2 {[%emt 0:01:59]} 31. Ke2 {[%emt 0:00:32]} a4 {[%emt 0:01:30]} 32. Rxf7 {[%emt 0:00:11]} a3 {[%emt 0:00:16]} 33. Ra7 {[%emt 0:00:10]} h4 {[%emt 0:00:57]} 34. gxh4 {[%emt 0:00:09]} Rh6 {[%emt 0:00:04]} 35. Bd5 {[%emt 0:00:38]} Rxh4 {[%emt 0:00:07]} 36. Kf3 {[%emt 0:01:26]} Rh1 {[%emt 0:01:24]} 37. Kg2 {[%emt 0:00:22]} Rd1 {[%emt 0:00:18]} 38. Bc4 {[%emt 0:00:24]} Rd2 {[%emt 0:01:00]} 39. Rxh7 {[%emt 0:00:29]} Rxd3 {[%emt 0:00:45]} 40. Bxd3 {[%emt 0:00:44]} a2 {[%emt 0:00:05]} 41. Rh1 {[%emt 0:00:08]} a1=Q {[%emt 0:00:23]} 42. Rxa1 {[%emt 0:00:07]} Bxa1 {[%emt 0:00:05]} 43. f4 {[%emt 0:00:10]} Kd7 {[%emt 0:00:04]} 44. e4 {[%emt 0:00:05]} Ke6 {[%emt 0:00:29]} 45. Kf3 {[%emt 0:01:43]} Kf6 {[%emt 0:00:32]} 46. Bc4 {[%emt 0:00:11]} Bd4 {[%emt 0:00:36]} 47. Ke2 {[%emt 0:00:22]} Ba1 {[%emt 0:00:32]} 48. Bb3 {[%emt 0:00:57]} Bb2 {[%emt 0:00:51]} 49. Kd2 {[%emt 0:00:09]} Ba1 {[%emt 0:00:35]} 50. Bd1 {[%emt 0:00:43]} Bd4 {[%emt 0:01:19]} 51. Kd3 {[%emt 0:00:54]} Bb2 {[%emt 0:00:20]} 52. Bg4 {[%emt 0:00:15]} Bd4 {[%emt 0:00:31]} 53. Kc4 {[%emt 0:00:12]} Ke7 {[%emt 0:01:24]} 54. e5 {[%emt 0:00:46]} Be3 {[%emt 0:00:30]} 55. f5 {[%emt 0:00:08]} Bg5 {[%emt 0:00:04]} 56. Kd5 {[%emt 0:00:39]} Bh4 {[%emt 0:00:36]} 57. Be2 {[%emt 0:00:21]} c4 {[%emt 0:00:17]} 58. Bxc4 {[%emt 0:00:05]} Bg5 {[%emt 0:00:15]} 59. Ke4 {[%emt 0:00:10]} Bh4 {[%emt 0:00:34]} 60. Kf4 {[%emt 0:00:12]} Kf8 {[%emt 0:00:54]} 61. f6 {[%emt 0:00:25]} Be1 {[%emt 0:00:22]} 62. e6 {[%emt 0:00:40]} Bb4 {[%emt 0:00:10]} 63. Be2 {[%emt 0:00:40]} Ba3 {[%emt 0:00:33]} 64. Bh5 {[%emt 0:00:10]} Bb4 {[%emt 0:00:48]} 65. Ke4 {[%emt 0:00:07]} Bc5 {[%emt 0:00:10]} 66. Kd5 {[%emt 0:00:09]} Bb4 {[%emt 0:00:06]} 67. Kc6 {[%emt 0:00:10]} Ba3 {[%emt 0:00:11]} 68. Kd7 {[%emt 0:00:07]} 1-0

[Event "XVII Orsha-2019 Open"]
[Site "Orsha"]
[Date "2019.01.21"]
[Round "6"]
[White "Papunidi, Matvey"]
[Black "Shkalov, Oleg"]
[Result "0-1"]
[ECO "B06"]
[WhiteElo "2113"]
[BlackElo "2225"]
[Annotator "NA RC"]
[PlyCount "80"]
[EventDate "2019.01.18"]
[EventType "swiss"]
[EventCountry "BLR"]
[SourceTitle "playchess.com"]
[Source "ChessBase"]
[SourceQuality "1"]
[TimeControl "5400+30"]

1. e4 {[%emt 0:00:00]} g6 {[%emt 0:02:31]} 2. d4 {[%emt 0:00:00]} Bg7 {[%emt 0:00:01]} 3. Nc3 {[%emt 0:00:00]} c5 {[%emt 0:00:27]} 4. Nf3 {[%emt 0:00:54]} cxd4 {[%emt 0:00:06]} 5. Nxd4 {[%emt 0:00:04]} Nc6 {[%emt 0:00:06]} 6. Be3 {[%emt 0:00:05]} Nf6 {[%emt 0:00:21]} 7. Nxc6 {[%emt 0:01:14]} bxc6 {[%emt 0:00:02]} 8. e5 {[%emt 0:00:08]} Ng8 {[%emt 0:15:59]} 9. Bd4 {[%emt 0:00:09]} f6 {[%emt 0:00:55]} 10. f4 {[%emt 0:10:48]} Qa5 {[%emt 0:00:31]} 11. Qe2 {[%emt 0:02:26]} c5 {[%emt 0:03:57] B34: Sicilian: Accelerated Dragon with 5 Nc3: sidelines} (11... fxe5 12. Bxe5 Nf6 13. Qc4 Qb6 14. O-O-O d6 15. Bd4 c5 16. Nd5 Qd8 17. Nxf6+ Bxf6 18. Bxf6 exf6 19. Qe4+ {1-0 (19) Baklan,V (2604)-Patrascu,C (2280) Baile Govora 2017}) 12. Bf2 {[%emt 0:18:58]} Rb8 {[%emt 0:04:00]} 13. Rb1 {[%emt 0:05:06]} Rxb2 {[%emt 0:02:20]} 14. Qd2 $146 {[%emt 0:00:26]} ({Predecessor:} 14. Rxb2 Qxc3+ 15. Qd2 Qxb2 16. Be2 Qa1+ 17. Bd1 fxe5 18. O-O exf4 19. Qxf4 Qe5 20. Qc4 Nf6 21. Bxc5 Qd5 22. Qb4 a5 23. Qa3 d6 {0-1 (23) Gaede,D-Regert,C Lingen 1996}) 14... Rxb1+ {[%emt 0:01:06]} 15. Nxb1 {[%emt 0:00:02]} Qxa2 {[%emt 0:02:49]} 16. Qc1 {[%emt 0:00:51]} fxe5 {[%emt 0:05:44]} 17. fxe5 {[%emt 0:00:02]} Qd5 {[%emt 0:02:07]} 18. Qe3 {[%emt 0:01:47]} Qxe5 {[%emt 0:04:40]} 19. Qxe5 {[%emt 0:00:03]} Bxe5 {[%emt 0:00:02]} 20. Bxc5 {[%emt 0:00:05]} a6 {[%emt 0:03:33]} 21. Bd3 {[%emt 0:04:36]} d6 {[%emt 0:03:58]} 22. Ba3 {[%emt 0:01:40]} Nh6 {[%emt 0:02:38]} 23. Be4 {[%emt 0:03:53]} O-O {[%emt 0:03:36]} 24. Nd2 {[%emt 0:00:44]} Rf4 {[%emt 0:05:58]} 25. Bd5+ {[%emt 0:01:04]} e6 {[%emt 0:05:57]} 26. Bc6 {[%emt 0:00:16]} Rf7 {[%emt 0:07:12]} 27. Nf3 {[%emt 0:03:55]} Bc3+ {[%emt 0:02:44]} 28. Ke2 {[%emt 0:00:08]} Rc7 {[%emt 0:01:13]} 29. Ba4 {[%emt 0:00:26]} Nf7 {[%emt 0:00:53]} 30. Rb1 {[%emt 0:02:47]} Kf8 {[%emt 0:01:01]} 31. Rb6 {[%emt 0:02:26] [#]} Ke7 $1 {[%emt 0:01:27]} 32. g3 {[%emt 0:12:33]} Bb7 {[%emt 0:02:35]} 33. Nd2 {[%emt 0:00:47]} Bd4 {[%emt 0:00:25]} 34. Rb1 {[%emt 0:00:29]} Ne5 {[%emt 0:03:14]} 35. Bb2 {[%emt 0:05:54]} Bxb2 {[%emt 0:00:31]} 36. Rxb2 {[%emt 0:02:00]} Bc6 {[%emt 0:00:20]} 37. Bxc6 {[%emt 0:00:34]} Nxc6 {[%emt 0:00:43]} 38. Ne4 {[%emt 0:00:27]} d5 {[%emt 0:01:53]} 39. Ng5 {[%emt 0:00:15]} h6 {[%emt 0:00:15]} 40. Nh3 {[%emt 0:00:05]} e5 $19 {[%emt 0:00:37]} 0-1

[Event "XVII Orsha-2019 Open"]
[Site "Orsha"]
[Date "2019.01.21"]
[Round "6.11"]
[White "Mihajlovskij, Sergei"]
[Black "Bury, Gleb M"]
[Result "1-0"]
[ECO "D90"]
[WhiteElo "2406"]
[BlackElo "1961"]
[PlyCount "86"]
[EventDate "2019.01.18"]
[EventType "swiss"]
[EventCountry "BLR"]
[TimeControl "5400+30"]

1. Nf3 Nf6 2. c4 g6 3. Nc3 Bg7 4. d4 d5 5. cxd5 Nxd5 6. Bd2 O-O 7. h4 c5 8. dxc5 Nxc3 9. Bxc3 Bxc3+ 10. bxc3 Qxd1+ 11. Rxd1 Be6 12. h5 Nc6 13. a3 Rfd8 14. Nd4 Bd5 15. hxg6 hxg6 16. f3 e5 17. Nb5 Bb3 18. Rb1 Na5 19. Rh4 Rac8 20. Rb4 Rxc5 21. Nxa7 Bc4 22. Rb6 Ra8 23. Nb5 Bxb5 24. R6xb5 Rxc3 25. Rxe5 Rxa3 26. Kf2 Rc8 27. Kg3 Rc7 28. Reb5 Rc2 29. e4 Raa2 30. e5 Kg7 31. Rd5 Rd2 32. Rxd2 Rxd2 33. f4 Ra2 34. Rb6 Ra3+ 35. Kg4 Kf8 36. g3 Ra2 37. Kg5 Ke7 38. g4 Ra3 39. Rb5 Kd7 40. Bg2 Kc7 41. Bd5 Nc6 42. Bxf7 Nd4 43. Rd5 Ne2 1-0

[Event "XVII Orsha-2019 Open"]
[Site "Orsha"]
[Date "2019.01.21"]
[Round "6.12"]
[White "Egorenkov, Igor"]
[Black "Bogacheva, Anna"]
[Result "1-0"]
[ECO "A40"]
[WhiteElo "2213"]
[BlackElo "1955"]
[PlyCount "55"]
[EventDate "2019.01.18"]
[EventType "swiss"]
[EventCountry "BLR"]
[TimeControl "5400+30"]

1. e4 c5 2. Nf3 g6 3. c4 Bg7 4. d4 cxd4 5. Nxd4 Qb6 6. Nb3 Nc6 7. Nc3 Qb4 8. Bd2 Qd6 9. c5 Qb8 10. Qc1 b6 11. cxb6 axb6 12. f4 Nh6 13. Bb5 Ba6 14. O-O f5 15. e5 Bxb5 16. Nxb5 O-O 17. e6 Na5 18. exd7 Nxb3 19. axb3 Rxa1 20. Qc4+ Nf7 21. Rxa1 Bxb2 22. Ra7 Bf6 23. Be3 Kg7 24. Qc7 g5 25. Nd4 Qxc7 26. Ne6+ Kh6 27. Rxc7 Ra8 28. fxg5+ 1-0